bitfinex-derivatives/quotes_SOLF0:USTF0_20241008
["timestamp","ask_amount","ask_price","bid_price","bid_amount"]
[1728361523410,18.9697,144.54,144.53,0.12502]
[1728361527917,14.1097,144.54,144.53,0.12502]
[1728361528123,18.9697,144.54,144.53,0.12502]
[1728361528916,14.1097,144.54,144.53,0.12502]
[1728361529135,18.9697,144.54,144.53,0.12502]
[1728361532017,3.4608,144.5,144.47,0.12502]
[1728361533919,3.4609,144.49,144.47,0.12502]
[1728361534319,10.65,144.5,144.47,0.12502]
[1728361534721,3.4609,144.49,144.47,0.12502]
[1728361535728,3.4612,144.48,144.47,0.12502]
[1728361538729,3.4611,144.49,144.47,10.77502]
[1728361548635,3.4611,144.49,144.47,0.12502]
[1728361549338,3.4612,144.48,144.47,0.12502]
[1728361549829,10.65,144.5,144.47,0.12502]
[1728361550736,3.4611,144.49,144.47,0.12502]
[1728361551524,3.4612,144.48,144.47,0.12502]
[1728361556635,14.1112,144.48,144.47,0.12502]
[1728361558843,18.9712,144.48,144.47,0.12502]
[1728361560244,8.3212,144.48,144.47,0.12502]
[1728361560537,4.86,144.48,144.47,0.12502]
[1728361561038,10.65,144.5,144.47,0.12502]
[1728361561232,3.461,144.49,144.47,0.12502]
[1728361565737,15.51,144.5,144.47,0.12502]
[1728361566044,3.4612,144.48,144.47,0.12502]
[1728361570744,4.86,144.5,144.47,0.12502]
[1728361570945,3.461,144.49,144.47,0.12502]
[1728361579756,1.4181,144.54,144.47,0.12502]
[1728361579942,14.1104,144.52,144.48,10.65]
[1728361580142,99.25037079,144.55,144.47,0.12502]
[1728361580143,15.51,144.53,144.49,10.65]
[1728361580457,3.4604,144.52,144.48,14.1111]
[1728361580646,14.1104,144.52,144.48,14.1111]
[1728361580845,10.65,144.52,144.48,10.65]
[1728361581846,3.4606,144.51,144.48,10.65]
[1728361586455,10.65,144.51,144.47,10.77502]
[1728361587261,3.4609,144.5,144.47,0.12502]
[1728361587462,10.65,144.51,144.47,10.77502]
[1728361588559,3.4608,144.5,144.48,14.1112]
[1728361588775,10.65,144.52,144.48,14.1112]
[1728361590455,3.4606,144.51,144.48,14.1112]
[1728361597970,3.4606,144.51,144.49,10.65]
[1728361599274,99.25037079,144.55,144.5,10.65]
[1728361599275,95.79335454,144.55,144.5,10.65]
[1728361599471,3.37944685,144.58,144.54,10.65]
[1728361600371,3.4591,144.57,144.54,14.1097]
[1728361602575,3.4591,144.57,144.54,10.65]
[1728361603774,3.4591,144.57,144.54,14.1097]
[1728361603972,14.14949291,144.59,144.56,10.65]
[1728361603973,3.58362,144.59,144.56,10.65]
[1728361604171,3.58362,144.59,144.57,10.65]
[1728361604970,0.12502,144.59,144.57,10.65]
[1728361605167,3.4588,144.58,144.56,10.65]
[1728361612682,3.58362,144.59,144.56,14.1092]
[1728361612878,3.58362,144.59,144.56,10.65]
[1728361612879,0.12502,144.59,144.56,10.65]
[1728361614479,3.4588,144.58,144.56,10.65]
[1728361615681,0.12502,144.59,144.57,10.65]
[1728361615988,3.58362,144.59,144.57,10.65]
[1728361616586,3.4592,144.56,144.55,1.4373]
[1728361616786,0.12502,144.59,144.55,12.0873]
[1728361617290,3.4591,144.57,144.55,12.0873]
[1728361621083,3.4591,144.57,144.56,10.65]
[1728361624594,0.12502,144.59,144.56,10.65]
[1728361624797,3.4588,144.58,144.56,10.65]
[1728361627997,0.12502,144.59,144.55,1.4373]
[1728361628199,10.65,144.56,144.5,4.84]
[1728361628399,10.65,144.56,144.51,10.65]
[1728361631091,3.4599,144.54,144.51,10.65]
[1728361635704,3.58372,144.59,144.55,3.4594]
[1728361635890,0.12502,144.59,144.58,10.65]
[1728361637498,0.12502,144.59,144.58,14.1088]
[1728361640808,0.12502,144.59,144.58,3.4588]
[1728361641005,0.12502,144.59,144.58,14.1088]
[1728361647913,0.12502,144.59,144.58,18.9488]
[1728361654213,0.12502,144.59,144.58,8.2988]
[1728361654717,0.12502,144.59,144.58,15.49]
[1728361656614,0.12502,144.59,144.58,18.9488]
[1728361658211,3.4578,144.62,144.59,3.4583]
[1728361658417,3.4578,144.62,144.61,10.65]
[1728361659518,3.4577,144.63,144.61,10.65]
[1728361663330,3.58222,144.65,144.62,10.65]
[1728361663529,3.58222,144.65,144.64,10.65]
[1728361665929,3.58222,144.65,144.63,10.65]
[1728361669330,3.58222,144.65,144.61,3.4579]
[1728361669524,3.58222,144.65,144.63,10.65]
[1728361674921,3.58222,144.65,144.64,10.65]
[1728361678037,0.12502,144.65,144.64,10.65]
[1728361685148,0.12502,144.65,144.63,10.65]
[1728361686447,3.4574,144.64,144.63,10.65]
[1728361697167,0.12502,144.65,144.58,1.4126]
[1728361697468,3.4579,144.62,144.6,10.65]
[1728361698556,3.4579,144.62,144.61,10.65]
[1728361699567,3.4575,144.64,144.61,14.1079]
[1728361699770,3.4575,144.64,144.63,10.65]
[1728361700158,4.96502,144.65,144.63,10.65]
[1728361700466,8.42222,144.65,144.63,10.65]
[1728361701256,3.4577,144.63,144.6,3.4581]
[1728361701462,4.96502,144.65,144.62,10.65]
[1728361701858,0.12502,144.65,144.62,10.65]
[1728361702060,3.4575,144.64,144.62,10.65]
[1728361703869,3.58222,144.65,144.62,14.1078]
[1728361707172,0.12502,144.65,144.64,10.65]
[1728361708476,0.12502,144.65,144.63,14.1074]
[1728361708683,3.4577,144.63,144.59,3.38447324]
[1728361708868,0.12502,144.65,144.62,10.65]
[1728361710461,3.58222,144.65,144.62,10.65]
[1728361711273,3.58222,144.65,144.63,10.65]
[1728361714475,3.4573,144.64,144.61,4.8119]
[1728361714683,0.12502,144.65,144.63,10.65]
[1728361715071,3.58222,144.65,144.63,10.65]
[1728361715379,0.12502,144.65,144.61,1.354]
[1728361715679,3.4574,144.64,144.61,12.004]
[1728361718278,0.12502,144.65,144.61,12.004]
[1728361718477,3.4576,144.63,144.61,12.004]
[1728361719278,3.4584,144.6,144.59,10.65]
[1728361719580,15.49,144.64,144.59,10.65]
[1728361719771,3.4577,144.63,144.6,10.65]
[1728361719973,4.84,144.64,144.6,10.65]
[1728361720374,3.4577,144.63,144.6,10.65]
[1728361721483,3.4577,144.63,144.6,14.1082]
[1728361722875,3.4577,144.63,144.6,10.65]
[1728361724476,3.4577,144.63,144.59,3.4584]
[1728361724676,3.4577,144.63,144.61,10.65]
[1728361725786,4.84,144.64,144.61,10.65]
[1728361726087,3.4578,144.62,144.61,10.65]
[1728361727085,4.84,144.64,144.61,10.65]
[1728361727282,8.2974,144.64,144.62,10.65]
[1728361727588,4.84,144.64,144.62,10.65]
[1728361727971,8.2973,144.64,144.62,10.65]
[1728361730584,3.4573,144.64,144.62,10.65]
[1728361734683,3.4577,144.63,144.61,10.65]
[1728361735189,0.12502,144.65,144.6,1.3403]
[1728361735377,0.12502,144.65,144.61,10.65]
[1728361736483,3.4577,144.63,144.61,10.65]
[1728361737983,0.12502,144.65,144.61,10.65]
[1728361738290,3.4574,144.64,144.62,10.65]
[1728361750194,0.12502,144.65,144.63,10.65]
[1728361750399,0.12502,144.65,144.63,14.1075]
[1728361750898,0.12502,144.65,144.63,10.65]
[1728361751496,0.12502,144.65,144.6,2.7468]
[1728361751497,0.12502,144.65,144.64,10.65]
[1728361751801,0.12502,144.65,144.64,14.1073]
[1728361756201,0.12502,144.65,144.64,3.4573]
[1728361756495,0.12502,144.65,144.64,14.1073]
[1728361761108,0.12502,144.65,144.64,10.65]
[1728361770030,0.12502,144.65,144.64,14.1073]
[1728361800538,0.12502,144.65,144.59,3.4585]
[1728361800738,10.77502,144.65,144.6,10.65]
[1728361801144,4.84,144.64,144.6,10.65]
[1728361801342,3.4579,144.62,144.6,10.65]
[1728361802946,3.458,144.61,144.59,10.65]
[1728361803444,14.07770607,144.6,144.55,10.65]
[1728361804238,3.4591,144.57,144.55,10.65]
[1728361804643,3.4591,144.57,144.53,0.12502]
[1728361804644,3.42770607,144.6,144.56,10.65]
[1728361805534,3.4587,144.59,144.56,10.65]
[1728361807040,1.379,144.64,144.58,10.65]
[1728361807344,8.2977,144.63,144.61,10.65]
[1728361808741,4.8364,144.64,144.61,10.65]
[1728361808943,9.6764,144.64,144.61,10.65]
[1728361809453,0.12502,144.65,144.61,10.65]
[1728361809639,3.58222,144.65,144.63,10.65]
[1728361813348,3.58222,144.65,144.58,4.84]
[1728361813349,0.12502,144.65,144.58,4.84]
[1728361813553,0.12502,144.65,144.64,14.1073]
[1728361815450,0.12502,144.65,144.64,10.65]
[1728361815661,0.12502,144.65,144.63,10.65]
[1728361816056,3.58222,144.65,144.63,10.65]
[1728361816654,3.58222,144.65,144.62,4.8646]
[1728361816962,0.12502,144.65,144.61,10.65]
[1728361817358,3.4574,144.64,144.61,10.65]
[1728361817564,3.4574,144.64,144.6,3.4582]
[1728361817565,3.4574,144.64,144.62,10.65]
[1728361818259,0.12502,144.65,144.59,1.3793]
[1728361818260,3.4581,144.61,144.59,1.3793]
[1728361818460,3.4581,144.61,144.6,10.65]
[1728361820568,3.4581,144.61,144.57,1.4061]
[1728361820569,3.4587,144.59,144.57,12.0561]
[1728361820863,15.49,144.63,144.57,12.0561]
[1728361821160,3.4584,144.6,144.58,10.65]
[1728361823975,4.84,144.63,144.58,10.65]
[1728361824163,3.4582,144.61,144.59,10.65]
[1728361824470,12.21372,144.65,144.6,10.65]
[1728361824662,3.4576,144.63,144.62,10.65]
[1728361825767,8.2973,144.64,144.62,10.65]
[1728361825974,8.2973,144.64,144.63,10.65]
[1728361826464,4.84,144.64,144.63,10.65]
[1728361827072,0.12502,144.65,144.63,14.1074]
[1728361827261,0.12502,144.65,144.64,10.65]
[1728361827979,0.12502,144.65,144.64,14.1073]
[1728361834884,0.12502,144.65,144.64,15.5135]
[1728361838176,1e-08,144.65,144.64,15.5135]
[1728361838585,3.456,144.7,144.67,3.4565]
[1728361838787,3.456,144.7,144.68,10.65]
[1728361839088,3.4561,144.69,144.68,10.65]
[1728361839891,0.12502,144.71,144.68,10.65]
[1728361840089,3.456,144.7,144.68,10.65]
[1728361845598,3.58072,144.71,144.69,10.65]
[1728361851502,3.456,144.7,144.68,10.65]
[1728361852791,3.4559,144.7,144.68,10.65]
[1728361852996,0.12502,144.71,144.68,10.65]
[1728361853704,3.456,144.7,144.68,10.65]
[1728361873412,3.4564,144.68,144.66,15.47]
[1728361873611,3.4564,144.68,144.66,10.65]
[1728361873814,3.4564,144.68,144.67,10.65]
[1728361875816,3.4559,144.7,144.67,14.1065]
[1728361876011,3.4559,144.7,144.69,10.65]
[1728361882315,0.12502,144.71,144.69,10.65]
[1728361882617,0.12502,144.71,144.7,10.65]
[1728361883217,0.12502,144.71,144.7,14.1059]
[1728361883616,0.12502,144.71,144.7,10.65]
[1728361887325,3.58072,144.71,144.7,10.65]
[1728361888919,0.12502,144.71,144.7,10.65]
[1728361893325,3.58072,144.71,144.7,10.65]
[1728361896432,0.12502,144.71,144.7,10.65]
[1728361898933,3.58072,144.71,144.7,10.65]
[1728361902031,0.12502,144.71,144.66,1.4283]
[1728361902239,4.94502,144.71,144.63,65.45336914]
[1728361902426,4.94502,144.71,144.67,10.65]
[1728361903033,3.4564,144.68,144.67,10.65]
[1728361903526,3.4563,144.69,144.67,10.65]
[1728361903733,3.4563,144.69,144.68,10.65]
[1728361908529,0.12502,144.71,144.69,3.456]
[1728361908836,0.12502,144.71,144.7,10.65]
[1728361915937,0.12502,144.77,144.7,10.65]
[1728361916236,0.12502,144.77,144.75,10.65]
[1728361916440,4.94502,144.77,144.75,10.65]
[1728361917235,3.4545,144.76,144.75,10.65]
[1728361918948,3.4548,144.75,144.74,10.65]
[1728361920746,4.94502,144.77,144.7,1.4002]
[1728361920944,10.65,144.76,144.72,10.65]
[1728361921648,3.4557,144.71,144.7,12.0502]
[1728361921843,3.4557,144.71,144.7,10.65]
[1728361922040,15.47,144.74,144.69,10.65]
[1728361922947,10.65,144.75,144.7,10.65]
[1728361923354,4.82,144.74,144.7,10.65]
[1728361923748,3.4552,144.73,144.7,10.65]
[1728361923944,4.82,144.74,144.7,10.65]
[1728361925045,4.82,144.74,144.72,10.65]
[1728361925355,4.82,144.74,144.73,10.65]
[1728361925651,8.2749,144.74,144.73,10.65]
[1728361925845,3.4549,144.74,144.73,10.65]
[1728361931658,4.94502,144.77,144.73,10.65]
[1728361931861,3.4549,144.75,144.74,10.65]
[1728361933256,4.94502,144.77,144.74,10.65]
[1728361933457,3.4546,144.76,144.74,10.65]
[1728361933865,3.4546,144.76,144.75,10.65]
[1728361939778,0.12502,144.77,144.75,10.65]
[1728361940081,3.57932,144.77,144.75,10.65]
[1728361940680,3.4545,144.76,144.75,10.65]
[1728361942378,3.4545,144.76,144.72,4.8026]
[1728361942379,0.12502,144.77,144.72,1.3473]
[1728361942680,0.12502,144.77,144.72,11.9973]
[1728361943379,3.4552,144.73,144.72,11.9973]
[1728361943582,0.12502,144.77,144.72,11.9973]
[1728361944285,3.4549,144.75,144.74,10.65]
[1728361945871,3.455,144.74,144.72,1.3473]
[1728361946176,3.455,144.74,144.73,10.65]
[1728361949184,3.4548,144.75,144.73,10.65]
[1728361949392,3.4548,144.75,144.74,10.65]
[1728361951084,0.12502,144.77,144.74,15.47]
[1728361951283,0.12518,144.84,144.76,10.65]
[1728361951284,8.34799375,144.83,144.76,10.65]
[1728361951479,8.34799375,144.83,144.8,10.65]
[1728361951683,3.4533,144.81,144.8,10.65]
[1728361967597,3.4541,144.78,144.75,3.4547]
[1728361967793,3.4541,144.78,144.77,10.65]
[1728361967994,4.94502,144.83,144.77,10.65]
[1728361968300,4.94502,144.83,144.79,10.65]
[1728361968796,3.4535,144.8,144.79,10.65]
[1728361981113,3.4543,144.77,144.74,63.9079253]
[1728361981313,15.47,144.8,144.75,10.65]
[1728361981820,10.65,144.79,144.74,62.5798253]
[1728361982014,10.65,144.79,144.71,0.12502]
[1728361982217,3.4547,144.75,144.74,10.65]
[1728361983713,3.4549,144.74,144.71,10.77502]
[1728361983920,14.02810941,144.76,144.71,10.77502]
[1728361985114,3.4548,144.75,144.71,10.77502]
[1728361985420,14.02810941,144.76,144.71,10.77502]
[1728361985620,3.4554,144.73,144.71,10.77502]
[1728361986315,3.4554,144.72,144.71,0.12502]
[1728361999645,3.37810941,144.76,144.71,10.77502]
[1728361999840,4.82,144.77,144.73,10.65]
[1728362000140,4.82,144.78,144.75,10.65]
[1728362000333,3.4545,144.76,144.75,10.65]
[1728362001441,3.4543,144.77,144.75,10.65]
[1728362004844,8.274,144.78,144.76,10.65]
[1728362007648,3.4538,144.79,144.77,10.65]
[1728362008848,3.454,144.78,144.77,10.65]
[1728362009345,10.65,144.8,144.76,1.3151]
[1728362010054,10.65,144.78,144.74,10.65]
[1728362010345,4.82,144.79,144.74,10.65]
[1728362010551,15.47,144.78,144.74,10.65]
[1728362010949,3.4547,144.75,144.74,10.65]
[1728362011148,10.65,144.77,144.71,0.12502]
[1728362011451,4.82,144.78,144.72,10.65]
[1728362011452,14.14866187,144.76,144.72,10.65]
[1728362011644,3.4552,144.73,144.72,10.65]
[1728362012247,14.14866187,144.76,144.71,0.12502]
[1728362012453,3.4554,144.72,144.71,10.77502]
[1728362019872,4.82,144.75,144.71,10.77502]
[1728362020046,3.4551,144.74,144.71,10.77502]
[1728362021362,3.4551,144.74,144.72,10.65]
[1728362027459,8.2748,144.75,144.72,10.65]
[1728362030957,3.4548,144.75,144.72,10.65]
[1728362034060,3.4548,144.75,144.73,10.65]
[1728362037555,1.3329,144.8,144.73,10.65]
[1728362037755,4.82,144.79,144.74,10.65]
[1728362038362,3.4545,144.76,144.74,10.65]
[1728362040369,3.4552,144.74,144.72,10.65]
[1728362041870,3.4552,144.73,144.72,10.65]
[1728362042366,3.455,144.74,144.72,10.65]
[1728362044762,6.2208,144.79,144.72,10.65]
[1728362044965,1.3329,144.8,144.75,10.65]
[1728362045172,4.82,144.8,144.77,10.65]
[1728362045364,4.82,144.81,144.77,10.65]
[1728362045560,3.4538,144.79,144.77,10.65]
[1728362046067,3.4537,144.8,144.78,10.65]
[1728362046368,0.12502,144.83,144.79,10.65]
[1728362046574,8.2731,144.82,144.79,10.65]
[1728362046772,3.4531,144.82,144.79,10.65]
[1728362047277,3.4532,144.82,144.79,10.65]
[1728362047666,0.12502,144.83,144.79,10.65]
[1728362048068,0.12502,144.83,144.78,10.65]
[1728362048573,3.4535,144.81,144.78,10.65]
[1728362050873,3.4535,144.8,144.78,10.65]
[1728362054069,3.4537,144.79,144.78,10.65]
[1728362059678,3.4537,144.79,144.75,4.82]
[1728362059879,3.4544,144.77,144.76,10.65]
[1728362060181,10.65,144.8,144.75,10.65]
[1728362061068,3.4546,144.76,144.75,10.65]
[1728362061874,4.8,144.78,144.75,10.65]
[1728362062076,3.4543,144.77,144.76,10.65]
[1728362063974,3.4549,144.74,144.73,2.8206]
[1728362064180,3.4549,144.74,144.73,12.0592]
[1728362065678,3.4549,144.74,144.73,1.4092]
[1728362065884,3.4552,144.73,144.72,10.65]
[1728362068482,3.4554,144.72,144.71,0.12502]
[1728362076790,8.2554,144.72,144.71,0.12502]
[1728362080282,18.9054,144.72,144.71,0.12502]
[1728362084794,8.2554,144.72,144.71,0.12502]
[1728362091005,3.4554,144.72,144.71,0.12502]
[1728362094906,14.1054,144.72,144.71,0.12502]
[1728362096099,3.4554,144.72,144.71,0.12502]
[1728362107934,3.4554,144.72,144.59,3.55572951]
[1728362107935,10.65,144.72,144.59,3.55572951]
[1728362108143,10.65,144.7,144.62,8.2576]
[1728362108333,10.65,144.68,144.63,10.65]
[1728362108636,10.65,144.68,144.6,3.987]
[1728362108637,3.4568,144.66,144.61,3.458]
[1728362108940,3.4568,144.66,144.62,10.65]
[1728362109534,3.4568,144.66,144.63,10.65]
[1728362114438,3.4568,144.66,144.62,10.65]
[1728362114842,14.1068,144.66,144.6,1.3459]
[1728362115032,3.458,144.61,144.6,1.3459]
[1728362115231,4.7613098,144.67,144.59,0.12502]
[1728362115232,10.65,144.62,144.59,0.12502]
[1728362115437,15.47,144.62,144.59,0.12502]
[1728362115643,3.4583,144.6,144.59,0.12502]
[1728362118550,10.65,144.61,144.59,0.12502]
[1728362118742,4.82,144.62,144.59,0.12502]
[1728362119540,3.4581,144.61,144.59,0.12502]
[1728362124949,3.4576,144.63,144.59,14.23352]
[1728362125153,4.82,144.63,144.59,10.77502]
[1728362125746,15.47,144.63,144.59,10.77502]
[1728362126043,3.458,144.62,144.59,10.77502]
[1728362126243,4.82,144.63,144.59,10.77502]
[1728362126643,8.2777,144.63,144.59,14.23352]
[1728362126852,8.2777,144.63,144.59,10.77502]
[1728362127052,3.4577,144.63,144.59,10.77502]
[1728362127752,3.4577,144.63,144.59,14.23342]
[1728362127953,4.82,144.64,144.59,14.23342]
[1728362128154,3.41123463,144.66,144.62,10.65]
[1728362128347,4.82,144.65,144.63,10.65]
[1728362128548,4.82,144.66,144.63,10.65]
[1728362129242,8.277,144.66,144.63,10.65]
[1728362130252,14.11850694,144.68,144.6,2.8151]
[1728362130253,4.82,144.67,144.64,10.65]
[1728362130857,8.2767,144.67,144.64,10.65]
[1728362131342,4.82,144.68,144.65,14.107]
[1728362131946,3.4563,144.69,144.65,14.107]
[1728362132357,4.82,144.7,144.65,10.65]
[1728362132558,3.4564,144.68,144.65,10.65]
[1728362134762,3.4566,144.67,144.65,10.65]
[1728362140558,0.12502,144.71,144.66,10.65]
[1728362140756,0.12502,144.71,144.68,10.65]
[1728362141457,0.12502,144.71,144.7,10.65]
[1728362142249,0.12502,144.71,144.7,14.1059]
[1728362144155,0.12502,144.71,144.7,10.65]
[1728362144659,0.12502,144.71,144.67,1.3178]
[1728362144864,0.12502,144.71,144.67,11.9678]
[1728362145055,3.4561,144.7,144.67,11.9678]
[1728362145659,15.57502,144.71,144.67,11.9678]
[1728362145963,10.65,144.7,144.66,10.65]
[1728362146768,3.4566,144.68,144.66,10.65]
[1728362147955,3.4566,144.68,144.64,4.8]
[1728362147956,10.65,144.7,144.64,4.8]
[1728362148156,3.4569,144.66,144.63,69.72881629]
[1728362149557,3.4569,144.66,144.63,73.18631629]
[1728362152767,3.4569,144.66,144.64,3.4573]
[1728362153269,3.4567,144.67,144.65,10.65]
[1728362153472,4.8,144.68,144.66,10.65]
[1728362153775,4.8,144.68,144.67,10.65]
[1728362155054,8.256,144.7,144.67,14.1066]
[1728362155267,4.8,144.7,144.67,14.1066]
[1728362156061,0.12502,144.71,144.68,10.65]
[1728362156871,0.12502,144.71,144.69,3.456]
[1728362158262,0.12502,144.71,144.69,10.65]
[1728362158463,0.12502,144.71,144.7,3.4559]
[1728362158972,0.12502,144.71,144.7,14.1059]
[1728362165673,4.8,144.76,144.7,10.65]
[1728362165880,3.4548,144.75,144.73,10.65]
[1728362168076,3.4551,144.74,144.71,3.4555]
[1728362168268,4.8,144.76,144.73,10.65]
[1728362169486,3.4548,144.75,144.73,10.65]
[1728362171774,0.12502,144.77,144.74,10.65]
[1728362172077,0.12502,144.77,144.73,10.65]
[1728362172578,3.4545,144.76,144.73,10.65]
[1728362177583,3.4545,144.76,144.73,14.1052]
[1728362177883,0.12502,144.77,144.75,10.65]
[1728362178185,0.12502,144.77,144.76,14.1045]
[1728362186679,0.12502,144.77,144.74,4.0085]
[1728362186883,0.12502,144.77,144.76,10.65]
[1728362187690,0.12502,144.77,144.75,3.4546]
[1728362187691,0.12502,144.77,144.75,10.65]
[1728362188489,0.12502,144.77,144.74,1.3309]
[1728362188688,0.12502,144.77,144.68,2.708]
[1728362188880,0.12502,144.77,144.75,10.65]
[1728362189082,0.12502,144.77,144.76,10.65]
[1728362193792,0.12502,144.77,144.76,14.1045]
[1728362195893,0.12502,144.77,144.76,10.65]
[1728362196083,0.12502,144.77,144.75,10.65]
[1728362196283,0.12502,144.77,144.72,4.8]
[1728362196486,0.12502,144.77,144.75,10.65]
[1728362196989,3.4545,144.76,144.75,10.65]
[1728362197989,3.4549,144.75,144.71,3.4556]
[1728362198188,3.39571246,144.76,144.72,10.65]
[1728362198390,14.04571246,144.76,144.72,10.65]
[1728362198799,3.4551,144.74,144.72,10.65]
[1728362200698,3.4552,144.73,144.72,10.65]
[1728362204298,3.4558,144.71,144.69,12.0281]
[1728362204886,3.4555,144.72,144.7,10.65]
[1728362208399,16.7874,144.75,144.69,1.3781]
[1728362208704,16.7874,144.75,144.7,10.65]
[1728362210200,3.4556,144.72,144.7,10.65]
[1728362216994,0.12502,144.77,144.7,10.65]
[1728362217196,3.4547,144.76,144.74,10.65]
[1728362219497,3.4547,144.76,144.73,14.1052]
[1728362220008,15.45,144.76,144.7,1.3206]
[1728362220202,15.45,144.76,144.7,10.65]
[1728362220600,3.4556,144.72,144.7,10.65]
[1728362221007,3.4556,144.72,144.69,1.3781]
[1728362221008,10.65,144.74,144.69,1.3781]
[1728362221307,3.4558,144.71,144.69,12.0281]
[1728362222109,3.4559,144.7,144.66,1.363]
[1728362222303,3.4559,144.7,144.67,10.65]
[1728362222807,3.4562,144.69,144.67,10.65]
[1728362223209,10.65,144.7,144.65,14.23202]
[1728362223514,3.4562,144.69,144.65,10.77502]
[1728362223906,3.4562,144.69,144.66,3.4568]
[1728362224309,3.4564,144.68,144.65,10.77502]
[1728362224613,15.45,144.7,144.65,14.23202]
[1728362225308,3.4563,144.69,144.67,10.65]
[1728362226713,3.4564,144.68,144.67,10.65]
[1728362227211,3.4564,144.68,144.65,0.12502]
[1728362227408,4.8,144.7,144.65,0.12502]
[1728362227409,3.4568,144.67,144.65,10.77502]
[1728362227805,3.4568,144.67,144.65,0.12502]
[1728362228911,4.8,144.7,144.66,10.65]
[1728362229107,4.8,144.7,144.67,10.65]
[1728362229913,3.4562,144.69,144.67,10.65]
[1728362230117,4.8,144.71,144.67,10.65]
[1728362230824,3.4561,144.7,144.67,14.1066]
[1728362231123,4.8,144.71,144.67,10.65]
[1728362232028,3.456,144.7,144.67,10.65]
[1728362239734,3.456,144.7,144.67,14.1066]
[1728362244030,4.8,144.71,144.67,14.1066]
[1728362244238,3.4561,144.69,144.67,14.1066]
[1728362247533,3.4561,144.69,144.67,10.65]
[1728362248833,3.4561,144.69,144.67,14.1066]
[1728362255547,4.8,144.71,144.65,0.12502]
[1728362255840,10.65,144.69,144.65,0.12502]
[1728362256339,4.8,144.68,144.65,0.12502]
[1728362257445,3.4568,144.66,144.65,0.12502]
[1728362260646,4.8,144.68,144.65,10.77502]
[1728362260943,8.2566,144.68,144.65,14.23202]
[1728362261141,4.8,144.68,144.65,10.77502]
[1728362261338,4.8,144.68,144.65,0.12502]
[1728362261735,4.8,144.68,144.65,10.77502]
[1728362261941,3.4568,144.67,144.65,10.77502]
[1728362262941,10.65,144.7,144.65,10.77502]
[1728362263238,3.4565,144.68,144.65,14.23202]
[1728362264244,3.4566,144.67,144.65,10.77502]
[1728362265140,3.4568,144.67,144.65,0.12502]
[1728362265738,15.45,144.69,144.65,0.12502]
[1728362265940,3.4568,144.66,144.65,0.12502]
[1728362267246,14.1068,144.66,144.65,0.12502]
[1728362267444,18.9068,144.66,144.65,0.12502]
[1728362268846,3.4579,144.62,144.59,1.44312]
[1728362269046,15.45,144.63,144.59,1.44312]